[Event "Bangabandhu Premier Div League 2022"]
[Site "Dhaka"]
[Date "2022.12.01"]
[Round "2.5"]
[White "Mohammed Abdul, Malek"]
[Black "Haque, Rezaul"]
[Result "1-0"]
[ECO "C41"]
[WhiteElo "2152"]
[BlackElo "1949"]
[Annotator "TA"]
[PlyCount "97"]
[EventDate "2022.12.01"]
[EventCountry "BAN"]
[SourceTitle "playchess.com"]
[Source "ChessBase"]
[SourceQuality "1"]
[TimeControl "40/5400+30:1800+30"]

{[%evp 9,97,89,80,71,81,81,82,81,88,62,101,92,95,23,77,70,77,67,95,20,25,37,31,29,25,0,0,-26,-10,-77,-63,-156,-166,-204,-167,-243,-243,-239,-199,-402,-388,-397,-397,-481,-308,-278,213,198,244,226,226,234,403,402,391,366,422,413,540,504,535,487,549,531,593,491,504,488,857,843,835,604,753,741,5945,4543,12837,12834,12841,12841,12846,12843,12844,12844,12847,12845,12845,12843,12846,12847]} 1. e4 {[%emt 0:00:04]} d6 {[%emt 0:00:19]} 2. d4 {[%emt 0:00:03]} Nf6 {[%emt 0:00:10]} 3. Nc3 {[%emt 0:00:02]} e5 {[%emt 1:31:31]} 4. Nf3 {[%emt 0:00:40]} Bg4 {[%emt 0:00:00]} 5. dxe5 {[%emt 0:00:09]} Bxf3 {[%emt 0:00:00][%mdl 64] [#] Remove Defender} 6. Qxf3 {[%emt 0:00:20] C41: Philidor Defence.} dxe5 {[%emt 0:00:00]} 7. Bc4 {[%emt 1:32:42]} Nbd7 {[%emt 0:02:00] [#]} 8. g4 $146 {[%emt 0:00:00] White is much more active. The black rooks are badly placed. White is better.} ({Predecessor:} 8. O-O Bd6 9. Bg5 O-O 10. Qg3 g6 11. Bh6 Re8 12. a3 Nh5 13. Qg5 Qxg5 14. Bxg5 {½-½ (54) Cristescu,A (1049)-Simion,A (1368) Calimanesti Caciulata 2016}) 8... h6 {[%emt 0:00:00]} 9. h4 {[%emt 0:01:00]} Nb6 $1 {[%emt 0:00:00] Against g5} 10. Bb3 {[%emt 0:00:30] Black must now prevent g5.} Qd7 {[%emt 0:01:30]} 11. Rg1 {[%emt 0:00:30]} (11. g5 $16 hxg5 12. Bxg5 (12. hxg5 Qg4 $17)) 11... Bb4 {[%emt 0:00:30]} (11... O-O-O $1 $11) 12. Bd2 {[%emt 0:00:30]} (12. a3 {simplifies} Bxc3+ 13. Qxc3 Qe7 14. Qf3) 12... O-O-O {[%emt 0:00:00]} 13. O-O-O {[%emt 0:00:30][%cal Od2h6] Threatens to win with Bxh6!} Qc6 {[%emt 0:01:00]} 14. Nd5 {[%emt 0:00:00]} (14. Bxf7 $6 Rhf8 $14) (14. a3 $16 Bxc3 15. Bxc3) 14... Nfxd5 $11 {[%emt 0:00:00]} 15. exd5 {[%emt 0:00:00]} Bxd2+ {[%emt 0:00:00]} 16. Rxd2 {[%emt 0:00:00]} Qf6 {[%emt 0:00:00]} 17. Qc3 {[%emt 0:00:00]} Kb8 $36 {[%emt 0:00:00][%mdl 2048] Black has the initiative.} 18. a4 {[%emt 0:00:00]} Nc8 {[%emt 0:00:00][%cal Bb6c8,Bc8d6,Bd6e4][%mdl 32]} 19. Kb1 {[%emt 0:00:00]} (19. h5 $11 {remains equal.}) 19... Nd6 $17 {[%emt 0:00:00]} (19... Qxh4 20. Qxe5 Qg5 21. Re2 $11) 20. Re1 {[%emt 0:00:00] Prevents Ne4.} (20. Qh3 $15) 20... Qxh4 {[%emt 0:00:00][%cal Od6e4]} 21. Rxe5 {[%emt 0:00:00]} Qxg4 {[%emt 0:00:00] And now ...Ne4 would win.} 22. Re7 {[%emt 0:00:00]} (22. Qg3 $142 Qb4 23. Rde2) 22... Rc8 $19 {[%emt 0:00:00]} 23. Ka2 {[%emt 0:00:00]} h5 {[%emt 0:05:00]} 24. a5 $2 {[%emt 0:00:00]} (24. f3 Qf4 25. Rg2) 24... Ne4 {[%emt 0:00:00]} 25. Rxe4 {[%emt 0:00:00]} Qxe4 {[%emt 0:01:00]} 26. a6 {[%emt 0:00:00]} Qg6 {[%emt 0:00:00]} (26... bxa6 27. Rd4 Qe8 28. Ba4 $18) 27. d6 {[%emt 0:00:00]} Qe4 {[%emt 0:00:00][%mdl 8192] [#]} (27... bxa6 $2 28. Qb4+ Ka8 29. dxc7 Rxc7 30. Bd5+ Rc6 31. Re2 $18 (31. Bxc6+ Qxc6 32. Qf4 Re8 $17)) (27... cxd6 $19 {avoids the disaster.} 28. Qb4 Rc7 29. Rxd6 Qf5 30. axb7 Qxf2) 28. Rd4 $1 $18 {[%emt 0:00:00] Black is on the road to losing.} Qc6 {[%emt 0:01:30]} (28... cxd6 {was called for.} 29. Qxc8+ (29. Rxe4 Rxc3 30. bxc3 h4 $16) 29... Kxc8 30. Rxe4 bxa6 31. Bxf7 g5) 29. axb7 {[%emt 0:00:00] Chess con chili.} Qxc3 {[%emt 0:00:00]} (29... Qxb7 $2 30. Rb4 (30. Bxf7 $2 {too greedy.} cxd6 31. Bc4 Rc6 $19) 30... Rhd8 31. Rxb7+ Kxb7 32. dxc7 Rxc7 33. Qxg7 $18) 30. bxc8=Q+ {[%emt 0:00:00]} Rxc8 $2 {[%emt 0:00:00]} (30... Kxc8 {keeps fighting.} 31. bxc3 Rh6 32. Bxf7 h4) 31. bxc3 {[%emt 0:00:00]} cxd6 {[%emt 0:00:00]} 32. Bxf7 {[%emt 0:00:00] Rb4+ is the strong threat.} Rxc3 {[%emt 0:00:00][%mdl 4096] Endgame KRB-KR} 33. Kb2 {[%emt 0:10:00]} ({Less strong is} 33. Bxh5 Rxc2+ 34. Kb3 Rxf2 $16) 33... Rc5 {[%emt 0:00:00]} 34. Rxd6 {[%emt 0:00:30] White is clearly winning.} Rf5 {[%emt 0:00:00]} 35. Bg6 {[%emt 0:00:30]} Rb5+ {[%emt 0:00:00]} 36. Kc3 {[%emt 0:00:00]} h4 {[%emt 0:04:00]} 37. Kc4 {[%emt 0:00:00] Prevents a5.} Rg5 {[%emt 0:00:00]} 38. Be4 {[%emt 0:01:30]} Re5 {[%emt 0:00:00]} (38... Kc8 $142 39. f4 Rh5) 39. Kd4 {[%emt 0:00:00]} Re7 {[%emt 0:01:30]} 40. Rd8+ {[%emt 0:00:00]} Kc7 {[%emt 0:00:00]} 41. Rh8 {[%emt 0:00:00]} Kb6 {[%emt 0:29:58]} 42. Rxh4 {[%emt 0:00:00]} a5 {[%emt 0:00:26]} 43. c4 {[%emt 0:00:00][%cal Bc2c4,Bc4c5,Bc5c6][%mdl 32]} a4 {[%emt 0:00:00]} 44. Rh8 {[%emt 0:33:00]} Ka5 {[%emt 0:00:00]} 45. Ra8+ {[%emt 0:00:00]} Kb4 {[%emt 0:00:00]} 46. Rb8+ {[%emt 0:00:00]} Ka5 {[%emt 0:00:00]} 47. c5 {[%emt 0:00:00]} a3 {[%emt 0:03:36]} 48. Bd5 {[%emt 0:02:00]} Re2 {[%emt 0:00:00]} 49. c6 {[%emt 0:00:00] Weighted Error Value: White=0.29 (precise) /Black=0.50} 1-0

[Event "Bangabandhu Premier Div League 2022"]
[Site "Dhaka"]
[Date "2022.12.01"]
[Round "2.5"]
[White "Mohammad, Shameem"]
[Black "Nayem, Haque"]
[Result "1/2-1/2"]
[ECO "E11"]
[WhiteElo "1892"]
[BlackElo "2189"]
[Annotator "TA"]
[PlyCount "72"]
[EventDate "2022.11.30"]
[EventType "team-tourn"]
[EventCountry "BAN"]
[SourceTitle "playchess.com"]
[Source "ChessBase"]
[SourceQuality "1"]
[TimeControl "40/5400+30:1800+30"]

{[%evp 10,72,8,0,0,0,0,1,12,6,6,4,2,4,2,15,8,0,20,21,17,9,16,0,6,4,14,14,21,9,11,22,18,28,39,16,20,0,22,22,22,22,23,0,0,-15,-12,-13,-5,-17,0,-10,12,12,12,20,17,21,37,37,39,28,51,43,46]} 1. d4 {[%emt 0:00:05]} Nf6 {[%emt 0:00:06]} 2. c4 {[%emt 0:00:08]} e6 {[%emt 0:00:09]} 3. Nf3 {[%emt 0:00:10]} d5 {[%emt 0:00:03]} 4. g3 {[%emt 0:00:12]} Bb4+ {[%emt 0:00:05]} 5. Bd2 {[%emt 0:00:27]} a5 {[%emt 0:00:05]} 6. a3 {[%emt 0:01:54]} Be7 {[%emt 0:01:57] E11: Bogo-Indian.} 7. Bg2 {[%emt 0:00:15]} O-O {[%emt 0:00:20]} 8. Qc2 {[%emt 0:04:19]} dxc4 {[%emt 0:08:33] The position is equal.} 9. Qxc4 {[%emt 0:00:42]} b6 {[%emt 0:00:30]} 10. Nc3 {[%emt 0:09:11]} (10. Bf4 {is interesting.} c5 11. Ne5 Ba6 12. Qb3) 10... Bb7 {[%emt 0:02:14]} 11. O-O {[%emt 0:04:09]} Nbd7 {[%emt 0:03:48]} 12. Bg5 {[%emt 0:03:42]} Rc8 {[%emt 0:10:41]} 13. Rfd1 {[%emt 0:02:22]} Nd5 {[%emt 0:05:25]} 14. Bxe7 {[%emt 0:01:21]} Qxe7 {[%emt 0:00:22] [#]} 15. Qd3 $146 {[%emt 0:10:04]} ({Predecessor:} 15. Nxd5 Bxd5 16. Qd3 f5 17. Rac1 Nf6 18. Ne5 Bxg2 19. Kxg2 Nd5 20. Nc6 Qd6 21. e3 {1-0 (50) Firat,B (2474)-Antonov,A (2309) Tornelo INT 2020}) 15... Rfd8 {[%emt 0:06:24]} 16. Rac1 {[%emt 0:06:15]} Nxc3 {[%emt 0:02:42]} 17. Rxc3 {[%emt 0:00:35][%cal Of3g5]} Nc5 {[%emt 0:06:39]} 18. Qc2 {[%emt 0:11:31]} (18. Qe3 {simplifies} Na4 19. Rc2 c5 20. b3) 18... Ne4 {[%emt 0:19:02] [#]} (18... Be4 {simplifies} 19. Qd2 Nd7 20. Qc1 c5) 19. Ng5 $1 {[%emt 0:03:31]} Qxg5 {[%emt 0:00:26]} 20. Bxe4 {[%emt 0:00:06]} Bxe4 {[%emt 0:03:20]} 21. Qxe4 {[%emt 0:00:14]} Qd5 {[%emt 0:03:14] Prevents Qb7.} 22. Qxd5 {[%emt 0:00:56]} Rxd5 $14 {[%emt 0:03:59][%mdl 4096] Endgame KRR-KRR} 23. e3 {[%emt 0:10:21]} Kf8 {[%emt 0:02:31]} 24. Rdc1 {[%emt 0:00:23]} Rb5 {[%emt 0:00:45]} 25. R1c2 {[%emt 0:06:07]} Ke8 {[%emt 0:00:11]} 26. a4 {[%emt 0:06:17]} Rb4 {[%emt 0:03:55]} 27. Rc4 {[%emt 0:00:20]} Rxc4 {[%emt 0:00:16]} 28. Rxc4 $11 {[%emt 0:00:03] KR-KR} Kd7 {[%emt 0:00:15]} 29. Kf1 {[%emt 0:00:36]} c6 {[%emt 0:00:27]} 30. Ke2 {[%emt 0:00:51]} b5 {[%emt 0:04:44]} 31. Rc5 {[%emt 0:04:07]} Rb8 {[%emt 0:01:55]} 32. b3 {[%emt 0:00:44]} Kc7 {[%emt 0:02:28]} 33. Kf3 {[%emt 0:03:52]} Kd6 {[%emt 0:03:04]} 34. h4 {[%emt 0:01:12]} f6 {[%emt 0:00:46]} 35. g4 {[%emt 0:00:24]} Rb7 {[%emt 0:00:49]} 36. Ke4 {[%emt 0:05:11]} Rb8 {[%emt 0:02:19] Weighted Error Value: White=0.06 (flawless) /Black=0.06 (flawless)} 1/2-1/2

[Event "Bangabandhu Premier Div League 2022"]
[Site "Dhaka"]
[Date "2022.12.01"]
[Round "2.6"]
[White "Ghosh, Diptayan"]
[Black "Habibur Rahman, Sohel"]
[Result "1-0"]
[ECO "B38"]
[WhiteElo "2544"]
[BlackElo "1871"]
[Annotator "TA"]
[PlyCount "77"]
[EventDate "2022.11.30"]
[EventType "team-tourn"]
[EventCountry "BAN"]
[SourceTitle "playchess.com"]
[Source "ChessBase"]
[SourceQuality "1"]
[TimeControl "40/5400+30:1800+30"]

{[%evp 25,77,52,87,85,89,77,62,34,126,79,216,221,254,247,223,248,234,239,237,182,209,183,183,185,212,212,204,190,193,186,191,179,172,165,183,170,182,184,239,236,247,264,256,244,238,233,233,228,345,347,354,351,539,535]} 1. Nf3 {[%emt 0:00:24]} Nf6 {[%emt 0:00:36]} 2. c4 {[%emt 0:00:17]} c5 {[%emt 0:00:35]} 3. Nc3 {[%emt 0:00:11]} g6 {[%emt 0:01:54]} 4. e4 {[%emt 0:00:37]} Bg7 {[%emt 0:01:17]} 5. d4 {[%emt 0:00:21]} cxd4 {[%emt 0:02:50]} 6. Nxd4 {[%emt 0:00:10]} d6 {[%emt 0:02:17]} 7. Be2 {[%emt 0:00:29]} a6 {[%emt 0:03:57]} 8. O-O {[%emt 0:01:25]} O-O {[%emt 0:00:26]} 9. Be3 {[%emt 0:00:16]} Nc6 {[%emt 0:01:50]} 10. Qd2 {[%emt 0:01:02]} Re8 {[%emt 0:02:09]} 11. Rac1 {[%emt 0:05:47]} Bd7 {[%emt 0:06:04]} 12. Rfd1 {[%emt 0:03:09]} Rc8 {[%emt 0:09:19]} 13. f3 {[%emt 0:02:38]} Ne5 {[%emt 0:08:23]} 14. b3 {[%emt 0:06:18] B38: Sicilian: Maroczy Bind with 5...Bg7 and 7...0-0.} Qa5 {[%emt 0:05:41]} 15. Bf1 {[%emt 0:07:52]} Nc6 {[%emt 0:03:54]} 16. a4 {[%emt 0:10:01] White is slightly better.} Qh5 {[%emt 0:04:17]} (16... Qb4 $14) 17. Nde2 {[%emt 0:02:12] [#]} ({White should play} 17. Nxc6 Bxc6 18. b4) 17... Red8 $146 {[%emt 0:04:48] This costs Black the game.} (17... Qa5 $16) ({Predecessor:} 17... Qa5 18. Rb1 Ne5 19. Nd4 Qb4 20. Rdc1 Nc6 21. Nc2 Qa5 22. Ne1 Ne5 23. h3 Nc6 {1-0 (23) Tuomala,T (2218)-Erlund,K Finland 2001}) 18. Nd5 $18 {[%emt 0:02:50]} Nxd5 {[%emt 0:10:56]} 19. exd5 {[%emt 0:02:05]} ({Much less strong is} 19. cxd5 $6 Ne5 20. Ng3 Nxf3+ 21. gxf3 Qxf3 $16) 19... Ne5 {[%emt 0:03:40] [#]} 20. Ng3 $1 {[%emt 0:01:42] Prevents h6.} Nxf3+ {[%emt 0:02:31]} (20... Qh4 $2 21. Bg5 $18) 21. gxf3 {[%emt 0:00:09]} Qxf3 {[%emt 0:00:23]} 22. Qf2 {[%emt 0:03:37]} Qg4 {[%emt 0:02:10]} 23. Qf4 {[%emt 0:04:31]} Bb2 {[%emt 0:03:18]} 24. Rb1 {[%emt 0:01:56]} Be5 {[%emt 0:00:27]} 25. Qxg4 {[%emt 0:00:52]} Bxg4 {[%emt 0:00:03]} 26. Be2 {[%emt 0:00:56]} Bd7 {[%emt 0:00:23]} 27. a5 {[%emt 0:09:45]} f5 {[%emt 0:02:50]} 28. Bg5 {[%emt 0:02:51]} Re8 {[%emt 0:00:44]} 29. Bd3 {[%emt 0:03:54]} Kg7 {[%emt 0:01:01]} 30. Ne2 {[%emt 0:01:25][%cal Bg3e2,Be2d4,Bd4e6,Be6g5][%mdl 32]} h6 {[%emt 0:02:15]} 31. Be3 {[%emt 0:00:19]} g5 {[%emt 0:03:26]} (31... e6 $142 32. dxe6 Rxe6) 32. Nd4 {[%emt 0:00:51]} f4 {[%emt 0:01:21]} 33. Bf2 {[%emt 0:00:04]} h5 {[%emt 0:01:57]} 34. Ne6+ {[%emt 0:01:26]} Kf6 {[%emt 0:01:41]} 35. Be4 {[%emt 0:00:23]} Rh8 {[%emt 0:01:16]} 36. Kh1 {[%emt 0:00:48]} h4 {[%emt 0:02:13]} (36... Rb8 $142 37. Rbc1 Rhe8) 37. h3 {[%emt 0:01:13]} Rb8 {[%emt 0:01:57]} 38. Rg1 {[%emt 0:00:31]} Rhg8 {[%emt 0:01:14] [#]} (38... Rbg8 {was worth a try.} 39. Bf3 Bxe6 40. dxe6 Rb8) 39. Nxg5 $1 {[%emt 0:03:37][%mdl 512] Weighted Error Value: White=0.10 (very precise) /Black=0.37} 1-0

[Event "Bangabandhu Premier Div League 2022"]
[Site "Dhaka"]
[Date "2022.12.01"]
[Round "2.6"]
[White "Rahman, Siddiqur"]
[Black "Muthaiah AL"]
[Result "0-1"]
[ECO "D95"]
[WhiteElo "1970"]
[BlackElo "2454"]
[Annotator "TA"]
[PlyCount "120"]
[EventDate "2022.12.01"]
[EventCountry "BAN"]
[SourceTitle "playchess.com"]
[Source "ChessBase"]
[SourceQuality "1"]
[TimeControl "40/5400+30:1800+30"]

{[%evp 15,120,-28,-23,-25,-14,-34,0,-10,-8,-14,0,0,-2,-6,-5,-4,7,10,8,-13,0,-7,10,11,11,10,10,0,9,18,12,0,0,0,0,0,0,0,0,0,0,0,22,0,37,0,2,2,2,14,19,0,0,0,0,0,0,0,0,-37,-37,-37,-37,-32,-35,-16,-14,-45,-6,-13,-10,-10,-8,-37,0,0,0,0,0,0,0,0,0,0,0,-12841,-20,-12841,-12842,-12843,0,0,0,-12843,0,-12844,-12844,-12845,-12845,-12845,-12846,-12846,-12847,-12847,-12847,-12849,-12849]} 1. d4 {[%emt 0:00:07]} Nf6 {[%emt 0:01:13]} 2. c4 {[%emt 0:00:35]} g6 {[%emt 0:00:24]} 3. Nc3 {[%emt 0:00:11]} d5 {[%emt 1:30:23]} 4. Nf3 {[%emt 0:04:27]} Bg7 {[%emt 0:00:30]} 5. e3 {[%emt 0:02:28]} O-O {[%emt 0:00:30]} 6. Qb3 {[%emt 0:03:48]} e6 {[%emt 0:00:30]} 7. Bd2 {[%emt 0:08:39]} b6 {[%emt 0:00:00]} 8. cxd5 {[%emt 0:01:18]} exd5 {[%emt 0:00:00]} 9. Rc1 {[%emt 1:13:27] D95: Grünfeld: 4 Nf3 Bg7 5 e3 0-0 6 Qb3.} c5 {[%emt 0:01:30]} 10. Be2 {[%emt 0:00:30] [#]} Be6 $146 {[%emt 0:00:30]} ({Predecessor:} 10... Nc6 11. O-O Bf5 12. dxc5 bxc5 13. Qb5 Qd6 14. Qa6 Rfc8 15. b4 {½-½ (15) Ivanov,M (2486)-Hillarp Persson,T (2538) Gothenburg 2010}) 11. O-O {[%emt 0:00:00] The position is equal.} Ne4 {[%emt 0:00:00]} 12. Rfd1 {[%emt 0:00:00]} (12. Qa4 {simplifies} Nxd2 13. Nxd2 cxd4 14. exd4 a6 15. Nf3) 12... Nc6 {[%emt 0:01:00][%cal Rc5d4]} 13. Be1 {[%emt 0:00:00]} c4 {[%emt 0:00:30]} 14. Qa4 {[%emt 0:02:00]} Nxc3 {[%emt 0:00:00]} 15. Bxc3 {[%emt 0:00:30]} Qd7 {[%emt 0:01:00][%cal Oc6d4]} (15... Qd6 {is interesting.} 16. Bxc4 dxc4 17. d5 Bxd5 18. e4 Bxc3 19. Rxc3 Qb4) 16. b3 {[%emt 0:00:30]} Rfc8 {[%emt 0:00:30]} (16... a6 {seems wilder.} 17. bxc4 Nxd4 18. Qxd7 Nxe2+ 19. Kf1 Bxd7 20. Kxe2 Bxc3 21. Rxc3 Rfc8) 17. Qa6 {[%emt 0:00:30][%cal Rb3c4]} (17. bxc4 Nxd4 $1 18. Qxd7 Nxe2+ 19. Kf1 Bxd7 $17) 17... Nb8 {[%emt 0:00:00]} 18. Qa3 {[%emt 0:00:00]} Bf8 {[%emt 0:00:00]} 19. Bb4 {[%emt 0:00:00]} Bxb4 {[%emt 0:00:00]} 20. Qxb4 {[%emt 0:00:00][%cal Rb3c4]} Nc6 {[%emt 0:02:00]} 21. Qb5 {[%emt 0:02:00][%cal Rb3c4]} cxb3 {[%emt 0:00:30]} 22. Qxb3 {[%emt 0:00:00]} Na5 {[%emt 0:00:30]} 23. Qb4 {[%emt 0:00:00]} Rxc1 {[%emt 0:00:00]} 24. Rxc1 {[%emt 0:00:00]} Rc8 {[%emt 0:01:00]} 25. Rc3 {[%emt 0:02:00]} Rxc3 {[%emt 0:00:00]} 26. Qxc3 {[%emt 0:00:00]} f6 {[%emt 0:00:00]} 27. h3 {[%emt 0:01:00]} Qc6 {[%emt 0:00:30]} 28. Qa3 {[%emt 0:00:00]} Kf7 {[%emt 0:00:14] Inhibits Qe7+.} 29. g4 {[%emt 0:00:00]} h6 {[%emt 0:00:36]} 30. Nh4 {[%emt 0:00:00] Qd3 is the strong threat.} (30. Bd3 $5 {[%cal Rf3h4]}) 30... g5 {[%emt 0:00:37]} 31. Nf5 {[%emt 0:00:00]} Bxf5 {[%emt 0:01:33]} 32. gxf5 $11 {[%emt 0:00:00][%mdl 4096] Endgame Bh5+ would kill now. KQB-KQN} Qd7 $1 {[%emt 0:00:00]} 33. Bh5+ {[%emt 0:00:00]} Kg7 {[%emt 0:00:00]} 34. Qb4 {[%emt 0:01:34]} Nc4 {[%emt 0:00:13]} 35. e4 {[%emt 0:00:14][%cal Oe4e5]} a5 {[%emt 0:01:47]} 36. Qc3 {[%emt 0:02:42]} b5 {[%emt 0:00:00]} 37. Bg4 {[%emt 0:00:00]} dxe4 {[%emt 0:00:00] Threatens to win with ...Qc7.} 38. a4 $1 {[%emt 0:00:00]} Nd6 {[%emt 0:00:52] And now ...b4 would win.} 39. axb5 {[%emt 0:00:15]} Nxb5 {[%emt 0:00:23]} (39... Nxf5 $2 40. b6 (40. Qxa5 e3 $16) 40... Qd8 41. Bxf5 $18) 40. Qxa5 {[%emt 0:00:48]} Nxd4 {[%emt 0:00:17]} 41. Qa8 {[%emt 0:30:12]} Nc6 {[%emt 0:30:53] Active counter play!} 42. Be2 {[%emt 0:01:45]} e3 {[%emt 0:00:00]} 43. fxe3 {[%emt 0:00:00]} Ne5 {[%emt 0:01:35]} (43... Ne7 {simplifies} 44. e4 Nc6 45. Qa4 Qc7) 44. e4 {[%emt 0:01:00]} h5 {[%emt 0:00:00]} (44... Qd4+ {with more complications.} 45. Kf1 Qe3 46. Qb7+ Nf7) 45. Bxh5 {[%emt 0:00:00]} Qd4+ {[%emt 0:00:00]} 46. Kh1 {[%emt 0:01:00]} Qc3 {[%emt 0:00:00]} 47. Bg4 {[%emt 0:00:30]} Qe1+ {[%emt 0:00:00]} 48. Kg2 {[%emt 0:00:00]} Nd3 {[%emt 0:01:05]} 49. Qa7+ {[%emt 0:00:00]} Kh6 {[%emt 0:01:55]} 50. Bf3 $2 {[%emt 0:00:00][%mdl 8192]} (50. Qd4 $11 Qd2+ 51. Kg3) 50... Nf4+ $19 {[%emt 0:00:00]} 51. Kh2 {[%emt 0:00:10]} Qf1 $1 {[%emt 0:00:00][%csl LRf3,LRh3]} 52. Qa3 {[%emt 0:00:59]} Qf2+ $2 {[%emt 0:00:06]} (52... Nxh3 $2 53. Qf8+ Kh7 54. Qf7+ Kh8 55. Qxf6+ Kh7 56. Qg6+ Kh8 57. Qh6+ Kg8 58. Qxh3 $18 (58. Bg2 Qf4+ 59. Kh1 Qc1+ 60. Kh2 Qf4+ 61. Kh1 Qc1+ 62. Kh2 Qf4+ $11)) ({Black should play} 52... Qxh3+ $19 53. Kg1 g4 54. Qf8+ Kg5 55. Qg8+ Kh4 56. Qxg4+ Qxg4+ 57. Bxg4 Kxg4 58. Kh1 Kf3 59. Kg1 Kxe4 60. Kf2 Nd5 61. Kg3 Ne7 62. Kh4 Nxf5+ 63. Kg4 Ne7 64. Kg3 f5 65. Kh4 f4 66. Kh3 f3 67. Kg3 Ke3 68. Kh3 f2 69. Kg2 Nf5 70. Kf1 Ng3+ 71. Kg2 f1=Q+ 72. Kxg3 Qg1+ 73. Kh4 Kf4 74. Kh5 Qg5#) 53. Kh1 $11 {[%emt 0:00:05]} Qf1+ $2 {[%emt 0:00:01][%mdl 8192]} (53... Nxh3 $2 54. Qf8+ Kh7 55. Qf7+ Kh8 56. Qxf6+ Kg8 57. Qg6+ Kh8 58. Qh6+ Kg8 59. Qxh3 $18) (53... Qe1+ $11 54. Kh2 Qf2+ 55. Kh1 Qf1+ 56. Kh2 Qxh3+ 57. Kg1 g4 58. Qf8+ Kg5 59. Qg8+ (59. Qg7+ $2 Kh4 $19) 59... Kh4 60. Qxg4+ Qxg4+ 61. Bxg4 Kxg4 62. Kf2 Nh3+ 63. Kg2 Ng5 64. Kh2 Nxe4 65. Kg2 Kxf5 66. Kf3 Ke5 67. Kg4 f5+ 68. Kf3 Ng5+ 69. Kg3 f4+ 70. Kg2 f3+ 71. Kg3 Kf5 72. Kh2 Kf4 73. Kh1 Ne4 74. Kh2 f2 75. Kg2 Ke3 76. Kf1 Ng3+ 77. Kg2 f1=Q+ 78. Kh2 Qf2+ 79. Kh3 Kf4 80. Kh4 Qh2#) 54. Kh2 $19 {[%emt 0:02:16]} Qxh3+ {[%emt 0:01:19]} (54... Nxh3 $2 55. Qf8+ Kh7 56. Qf7+ Kh8 57. Qxf6+ Kh7 58. Qg6+ Kh8 59. Qh6+ Kg8 60. Qxh3 $18 (60. Bg2 Qf4+ 61. Kh1 Qc1+ 62. Kh2 Qf4+ 63. Kh1 Qc1+ 64. Kh2 Qf4+ $11)) 55. Kg1 {[%emt 0:00:30] [#]} g4 $1 {[%emt 0:00:09] Black is clearly winning.} 56. Qf8+ {[%emt 0:00:00]} Kg5 {[%emt 0:00:12]} 57. Qg7+ {[%emt 0:00:14] [#]} Kh4 $1 {[%emt 0:00:06]} 58. Qxf6+ {[%emt 0:00:39]} Kg3 {[%emt 0:00:01] ( -> ...Qh2+)} 59. Qb2 {[%emt 0:00:33] Prevents Qh2+.} gxf3 {[%emt 0:01:20]} ({Weaker is} 59... Kxf3 60. Qc3+ Ke2 61. Qc2+ Kf3 62. Qc3+ Kxe4 63. Qc4+ Ke5 64. Qc7+ Kf6 65. Qxf4 $11) 60. Qf2+ {[%emt 0:00:26]} Kg4 {[%emt 0:00:07] Weighted Error Value: White=0.20 (precise) /Black=0.14 (very precise)} 0-1

[Event "Bangabandhu Premier Div League 2022"]
[Site "Dhaka"]
[Date "2022.12.01"]
[Round "2.7"]
[White "Harikrishnan.A.Ra"]
[Black "Swarnavo Choudhury"]
[Result "1-0"]
[ECO "D02"]
[WhiteElo "2409"]
[BlackElo "1977"]
[Annotator "TA"]
[PlyCount "59"]
[EventDate "2022.12.01"]
[EventCountry "BAN"]
[SourceTitle "playchess.com"]
[Source "ChessBase"]
[SourceQuality "1"]
[TimeControl "40/5400+30:1800+30"]

{[%evp 9,59,3,8,2,14,0,-1,-11,42,10,23,25,14,9,0,0,33,34,111,105,118,123,158,156,157,167,156,107,135,123,194,188,226,216,243,175,260,258,243,249,297,304,381,375,574,570,552,545,29996,29997,29997,29998]} 1. d4 {[%emt 0:00:07]} d5 {[%emt 0:00:09]} 2. Nf3 {[%emt 0:00:05]} Nf6 {[%emt 1:31:21]} 3. c3 {[%emt 1:31:48]} e6 {[%emt 0:00:00]} 4. Bf4 {[%emt 0:00:00]} Bd6 {[%emt 0:00:00]} 5. e3 {[%emt 0:00:00]} O-O {[%emt 0:01:30]} 6. Nbd2 {[%emt 0:00:00] D02: 1 d4 d5 2 Nf3 sidelines, including 2...Nf6 3 g3 and 2...Nf6 3 Bf4.} c5 {[%emt 0:00:30]} 7. Bg3 {[%emt 0:02:00]} b6 {[%emt 0:00:30]} 8. Ne5 {[%emt 0:00:30] The position is equal. is now debated instead of 8.Bd3.} Bxe5 {[%emt 0:00:30]} (8... Qc7 $11) 9. Bxe5 {[%emt 0:00:30]} Ba6 {[%emt 0:00:30]} 10. Bxa6 {[%emt 0:00:30]} Nxa6 {[%emt 0:00:00]} 11. O-O {[%emt 0:00:30]} Nb8 {[%emt 0:01:00] [#]} 12. Bg3 $146 {[%emt 0:00:30]} ({Predecessor:} 12. f4 Nc6 13. Qf3 Ne8 14. f5 Nxe5 15. dxe5 exf5 16. Qxf5 Qc8 17. Qf4 Qe6 18. Rf3 {1-0 (69) Mollah Abdullah,A (2461)-Rahman,M (2296) Dhaka 2015}) 12... Nc6 {[%emt 0:00:30]} 13. Bh4 {[%emt 0:00:30]} e5 {[%emt 0:00:00]} (13... Kh8 $14) 14. dxc5 $1 $16 {[%emt 0:00:30]} bxc5 {[%emt 0:00:00] [#]} 15. c4 $1 {[%emt 0:00:00]} Ne7 16. Bxf6 {[%emt 0:01:00]} gxf6 {[%emt 0:02:00]} 17. cxd5 {[%emt 0:00:30]} Qxd5 {[%emt 0:00:00]} 18. Qc2 {[%emt 0:00:30]} ({White should play} 18. Qg4+ Kh8 {[#]} 19. Qh4 $1) 18... f5 {[%emt 0:01:00]} 19. Rfd1 {[%emt 0:00:00][%cal Bf1d1,Bd1d4,Bd4d6][%mdl 32]} Rac8 {[%emt 0:00:00]} (19... Qe6 $16) 20. Nc4 $18 {[%cal Bd2c4,Bc4e5,Be5d3,Bd3f4,Bf4h5][%mdl 32]} Qc6 {[%emt 0:01:00]} 21. Nxe5 {[%emt 0:01:30]} Qe6 {[%emt 0:00:30]} 22. Nd3 {[%emt 0:00:30]} c4 {[%emt 0:00:00]} (22... Nd5 $142 23. Qc4 (23. Nxc5 Nxe3 24. Qc1 Nxd1 $16) 23... Nb4) 23. Nf4 {[%emt 0:00:00]} Qe5 {[%emt 0:00:00]} 24. Rd4 {[%emt 0:01:00]} Rc5 {[%emt 0:01:30]} 25. Rad1 {[%emt 0:00:00]} ({Resist} 25. Rxc4 $6 Rxc4 26. Qxc4 Qxb2 $18) 25... Kg7 26. Qc3 {[%emt 0:01:00]} ({Don't play} 26. Rxc4 Rfc8 $18) 26... Rfc8 {[%emt 0:01:00]} (26... Nc6 {keeps fighting.} 27. Qc1 Kg8) 27. Nh5+ {[%emt 0:00:30]} Kg6 {[%emt 0:00:00]} 28. f4 {[%emt 0:00:30]} Qb8 {[%emt 0:01:00] Prevents e4.} 29. Rd6+ {[%emt 0:00:30]} Kxh5 {[%emt 0:00:30]} 30. Qg7 {[%emt 0:00:00] Weighted Error Value: White=0.07 (flawless) /Black=0.58} 1-0